fUSD/lending_fUSD_20260601
["ID","MTS","AMOUNT","RATE_DAILY","PERIOD"]
[423653458,1780282244000,-500.0,0.00013698,2]
[423653524,1780282244000,-643.52,0.00013698,2]
[423653586,1780282244000,-500.0,0.00013698,2]
[423653460,1780282244000,-500.0,0.00013698,2]
[423653468,1780282244000,-500.0,0.00013698,2]
[423653466,1780282244000,-500.0,0.00013698,2]
[423653462,1780282244000,-500.0,0.00013698,2]
[423653464,1780282244000,-500.0,0.00013698,2]
[423653471,1780282244000,-500.0,0.00013698,2]
[423653473,1780282244000,-576.27885746,0.00013698,2]
[423653475,1780282244000,-202.90344973,0.00013698,2]
[423653477,1780282244000,-643.52,0.00013698,2]
[423653481,1780282244000,-643.52,0.00013698,2]
[423653483,1780282244000,-643.52,0.00013698,2]
[423653479,1780282244000,-643.52,0.00013698,2]
[423653487,1780282244000,-643.52,0.00013698,2]
[423653489,1780282244000,-643.52,0.00013698,2]
[423653485,1780282244000,-643.52,0.00013698,2]
[423653493,1780282244000,-643.52,0.00013698,2]
[423653491,1780282244000,-643.52,0.00013698,2]
[423653495,1780282244000,-643.52,0.00013698,2]
[423653501,1780282244000,-643.52,0.00013698,2]
[423653497,1780282244000,-643.52,0.00013698,2]
[423653499,1780282244000,-643.52,0.00013698,2]
[423653503,1780282244000,-643.52,0.00013698,2]
[423653506,1780282244000,-643.52,0.00013698,2]
[423653514,1780282244000,-643.52,0.00013698,2]
[423653508,1780282244000,-643.52,0.00013698,2]
[423653512,1780282244000,-643.52,0.00013698,2]
[423653510,1780282244000,-643.52,0.00013698,2]
[423653526,1780282244000,-500.0,0.00013698,2]
[423653516,1780282244000,-643.52,0.00013698,2]
[423653591,1780282244000,-500.0,0.00013698,2]
[423653589,1780282244000,-500.0,0.00013698,2]
[423653596,1780282244000,-500.0,0.00013698,2]
[423653665,1780282244000,-534.02,0.00013698,2]
[423653677,1780282244000,-534.02,0.00013698,2]
[423653670,1780282244000,-534.02,0.00013698,2]
[423653667,1780282244000,-534.02,0.00013698,2]
[423653682,1780282244000,-534.02,0.00013698,2]
[423653680,1780282244000,-500.0,0.00013698,2]
[423653673,1780282244000,-534.02,0.00013698,2]
[423653675,1780282244000,-534.02,0.00013698,2]
[423653671,1780282244000,-534.02,0.00013698,2]
[423653684,1780282244000,-534.02,0.00013698,2]
[423653686,1780282244000,-319.20799015,0.00013698,2]
[423653688,1780282244000,-534.02,0.00013698,2]
[423653690,1780282244000,-534.02,0.00013698,2]
[423653663,1780282244000,-534.02,0.00013698,2]
[423653692,1780282244000,-534.13873113,0.00013698,2]
[423653698,1780282244000,-519.61643088,0.00013698,2]
[423653696,1780282244000,-174.95193931,0.00013698,2]
[423653706,1780282244000,-151.0,0.00013699,2]
[423653704,1780282244000,-151.0,0.00013699,2]
[423653700,1780282244000,-2500.0,0.00013699,2]
[423653708,1780282244000,-240.984577,0.00013699,2]
[423653710,1780282244000,-151.0,0.00013699,2]
[423653702,1780282244000,-166.66,0.00013699,2]
[423653713,1780282244000,-151.0,0.00013699,2]
[423653717,1780282244000,-151.0,0.00013699,2]
[423653715,1780282244000,-151.0,0.00013699,2]
[423653719,1780282244000,-151.0,0.00013699,2]
[423653723,1780282244000,-151.0,0.00013699,2]
[423653694,1780282244000,-509.92066561,0.00013698,2]
[423653661,1780282244000,-534.02,0.00013698,2]
[423653721,1780282244000,-151.0,0.00013699,2]
[423653643,1780282244000,-534.02,0.00013698,2]
[423653593,1780282244000,-500.0,0.00013698,2]
[423653604,1780282244000,-500.0,0.00013698,2]
[423653600,1780282244000,-500.0,0.00013698,2]
[423653602,1780282244000,-500.0,0.00013698,2]
[423653606,1780282244000,-500.0,0.00013698,2]
[423653598,1780282244000,-500.0,0.00013698,2]
[423653608,1780282244000,-500.0,0.00013698,2]
[423653611,1780282244000,-258.84484767,0.00013698,2]
[423653646,1780282244000,-534.02,0.00013698,2]
[423653624,1780282244000,-500.0,0.00013698,2]
[423653615,1780282244000,-500.0,0.00013698,2]
[423653626,1780282244000,-500.0,0.00013698,2]
[423653628,1780282244000,-500.0,0.00013698,2]
[423653617,1780282244000,-500.0,0.00013698,2]
[423653613,1780282244000,-500.0,0.00013698,2]
[423653630,1780282244000,-196.77646155,0.00013698,2]
[423653648,1780282244000,-534.02,0.00013698,2]
[423653621,1780282244000,-500.0,0.00013698,2]
[423653645,1780282244000,-534.02,0.00013698,2]
[423653659,1780282244000,-534.02,0.00013698,2]
[423653640,1780282244000,-534.02,0.00013698,2]
[423653655,1780282244000,-534.02,0.00013698,2]
[423653638,1780282244000,-502.85146207,0.00013698,2]
[423653657,1780282244000,-534.02,0.00013698,2]
[423653651,1780282244000,-534.02,0.00013698,2]
[423653632,1780282244000,-500.0,0.00013698,2]
[423653636,1780282244000,-500.0,0.00013698,2]
[423653634,1780282244000,-500.0,0.00013698,2]
[423653619,1780282244000,-500.0,0.00013698,2]
[423653653,1780282244000,-534.02,0.00013698,2]
[423653786,1780282245000,-1768.15932595,0.00013699,2]
[423653788,1780282245000,-1768.15932595,0.00013699,2]
[423653789,1780282245000,-1768.15932595,0.00013699,2]
[423653792,1780282245000,-1768.15932595,0.00013699,2]
[423653774,1780282245000,-1768.15932595,0.00013699,2]
[423653795,1780282245000,-1768.15932595,0.00013699,2]
[423653785,1780282245000,-1768.15932595,0.00013699,2]
[423653781,1780282245000,-1768.15932595,0.00013699,2]
[423653782,1780282245000,-1768.15932595,0.00013699,2]
[423653783,1780282245000,-1768.15932595,0.00013699,2]
[423653793,1780282245000,-1768.15932595,0.00013699,2]
[423653784,1780282245000,-1768.15932595,0.00013699,2]
[423653802,1780282245000,-1768.15932595,0.00013699,2]
[423653794,1780282245000,-1768.15932595,0.00013699,2]
[423653791,1780282245000,-1768.15932595,0.00013699,2]
[423653810,1780282245000,-1768.15932595,0.00013699,2]
[423653797,1780282245000,-1768.15932595,0.00013699,2]
[423653805,1780282245000,-1768.15932595,0.00013699,2]
[423653807,1780282245000,-1768.15932595,0.00013699,2]
[423653808,1780282245000,-1768.15932595,0.00013699,2]
[423653796,1780282245000,-1768.15932595,0.00013699,2]
[423653799,1780282245000,-1768.15932595,0.00013699,2]
[423653798,1780282245000,-1768.15932595,0.00013699,2]
[423653800,1780282245000,-1768.15932595,0.00013699,2]
[423653801,1780282245000,-1768.15932595,0.00013699,2]
[423653780,1780282245000,-1768.15932595,0.00013699,2]
[423653787,1780282245000,-1768.15932595,0.00013699,2]
[423653772,1780282245000,-1768.15932595,0.00013699,2]
[423653756,1780282245000,-500.0,0.00013699,2]
[423653776,1780282245000,-1768.15932595,0.00013699,2]
[423653813,1780282245000,-1768.15932595,0.00013699,2]
[423653730,1780282245000,-167.974207,0.00013699,2]
[423653732,1780282245000,-286.72,0.00013699,2]
[423653731,1780282245000,-200.0,0.00013699,2]
[423653736,1780282245000,-829.64,0.00013699,2]
[423653733,1780282245000,-238.93,0.00013699,2]
[423653735,1780282245000,-165.92,0.00013699,2]
[423653734,1780282245000,-199.11,0.00013699,2]
[423653728,1780282245000,-151.0,0.00013699,2]
[423653727,1780282245000,-151.0,0.00013699,2]
[423653725,1780282245000,-151.0,0.00013699,2]
[423653738,1780282245000,-354.74978975,0.00013699,2]
[423653748,1780282245000,-500.0,0.00013699,2]
[423653778,1780282245000,-1768.15932595,0.00013699,2]
[423653750,1780282245000,-500.0,0.00013699,2]
[423653737,1780282245000,-154.0,0.00013699,2]
[423653757,1780282245000,-500.0,0.00013699,2]
[423653753,1780282245000,-500.0,0.00013699,2]
[423653746,1780282245000,-500.0,0.00013699,2]
[423653743,1780282245000,-500.0,0.00013699,2]
[423653741,1780282245000,-500.0,0.00013699,2]
[423653739,1780282245000,-500.0,0.00013699,2]
[423653759,1780282245000,-500.0,0.00013699,2]
[423653764,1780282245000,-500.0,0.00013699,2]
[423653766,1780282245000,-500.0,0.00013699,2]
[423653762,1780282245000,-500.0,0.00013699,2]
[423653770,1780282245000,-364.24573169,0.00013699,2]
[423653768,1780282245000,-500.0,0.00013699,2]
[423653752,1780282245000,-500.0,0.00013699,2]
[423653803,1780282245000,-1768.15932595,0.00013699,2]
[423653790,1780282245000,-1768.15932595,0.00013699,2]
[423653817,1780282245000,-1768.15932595,0.00013699,2]
[423653857,1780282245000,-1723.95534281,0.00013699,2]
[423653856,1780282245000,-1723.95534281,0.00013699,2]
[423653854,1780282245000,-1723.95534281,0.00013699,2]
[423653853,1780282245000,-1768.15932595,0.00013699,2]
[423653851,1780282245000,-1768.15932595,0.00013699,2]
[423653855,1780282245000,-1723.95534281,0.00013699,2]
[423653863,1780282245000,-1723.95534281,0.00013699,2]
[423653861,1780282245000,-1723.95534281,0.00013699,2]
[423653864,1780282245000,-1723.95534281,0.00013699,2]
[423653865,1780282245000,-1723.95534281,0.00013699,2]
[423653866,1780282245000,-1723.95534281,0.00013699,2]
[423653867,1780282245000,-1723.95534281,0.00013699,2]
[423653870,1780282245000,-1723.95534281,0.00013699,2]
[423653852,1780282245000,-1768.15932595,0.00013699,2]
[423653869,1780282245000,-1723.95534281,0.00013699,2]
[423653871,1780282245000,-1723.95534281,0.00013699,2]
[423653873,1780282245000,-1723.95534281,0.00013699,2]
[423653868,1780282245000,-1723.95534281,0.00013699,2]
[423653875,1780282245000,-1723.95534281,0.00013699,2]
[423653874,1780282245000,-1723.95534281,0.00013699,2]
[423653876,1780282245000,-1723.95534281,0.00013699,2]
[423653880,1780282245000,-166.66,0.00013973,2]
[423653879,1780282245000,-166.66,0.00013836,2]
[423653877,1780282245000,-1723.95534281,0.00013699,2]
[423653878,1780282245000,-1085.35,0.000137,2]
[423653881,1780282245000,-60000.0,0.0001399,2]
[423653883,1780282245000,-2420.19172135,0.00013993,2]
[423653815,1780282245000,-1768.15932595,0.00013699,2]
[423653872,1780282245000,-1723.95534281,0.00013699,2]
[423653859,1780282245000,-1723.95534281,0.00013699,2]
[423653862,1780282245000,-1723.95534281,0.00013699,2]
[423653849,1780282245000,-1768.15932595,0.00013699,2]
[423653819,1780282245000,-1768.15932595,0.00013699,2]
[423653850,1780282245000,-1768.15932595,0.00013699,2]
[423653823,1780282245000,-1768.15932595,0.00013699,2]
[423653825,1780282245000,-1768.15932595,0.00013699,2]
[423653820,1780282245000,-1768.15932595,0.00013699,2]
[423653821,1780282245000,-1768.15932595,0.00013699,2]
[423653831,1780282245000,-1768.15932595,0.00013699,2]
[423653829,1780282245000,-1768.15932595,0.00013699,2]
[423653827,1780282245000,-1768.15932595,0.00013699,2]
[423653832,1780282245000,-1768.15932595,0.00013699,2]
[423653833,1780282245000,-1768.15932595,0.00013699,2]
[423653834,1780282245000,-1768.15932595,0.00013699,2]
[423653835,1780282245000,-1768.15932595,0.00013699,2]
[423653838,1780282245000,-1768.15932595,0.00013699,2]
[423653822,1780282245000,-1768.15932595,0.00013699,2]
[423653839,1780282245000,-1768.15932595,0.00013699,2]
[423653858,1780282245000,-1723.95534281,0.00013699,2]
[423653837,1780282245000,-1768.15932595,0.00013699,2]
[423653860,1780282245000,-1723.95534281,0.00013699,2]
[423653844,1780282245000,-1768.15932595,0.00013699,2]
[423653842,1780282245000,-1768.15932595,0.00013699,2]
[423653845,1780282245000,-1768.15932595,0.00013699,2]
[423653848,1780282245000,-1768.15932595,0.00013699,2]
[423653843,1780282245000,-1768.15932595,0.00013699,2]
[423653840,1780282245000,-1768.15932595,0.00013699,2]
[423653836,1780282245000,-1768.15932595,0.00013699,2]
[423653846,1780282245000,-1768.15932595,0.00013699,2]
[423653841,1780282245000,-1768.15932595,0.00013699,2]
[423653847,1780282245000,-1768.15932595,0.00013699,2]
[423653915,1780282246000,-150.0,0.00014395,2]
[423653924,1780282246000,-188.40616197,0.00014439,2]
[423653913,1780282246000,-188.40616197,0.0001439,2]
[423653917,1780282246000,-188.40616197,0.00014406,2]
[423653919,1780282246000,-150.0,0.0001442,2]
[423653920,1780282246000,-150.0,0.0001442,2]
[423653922,1780282246000,-150.0,0.0001443,2]
[423653923,1780282246000,-150.0,0.00014432,2]
[423653921,1780282246000,-188.40616197,0.00014422,2]
[423653928,1780282246000,-2749.1967512,0.00014459,2]
[423653927,1780282246000,-188.40616197,0.00014455,2]
[423653930,1780282246000,-150.0,0.00014466,2]
[423653929,1780282246000,-150.0,0.00014464,2]
[423653926,1780282246000,-2749.1967512,0.00014453,2]
[423653933,1780282246000,-150.0,0.00014499,2]
[423653934,1780282246000,-188.40616197,0.00014503,2]
[423653911,1780282246000,-166.66,0.00014384,2]
[423653931,1780282246000,-188.40616197,0.00014471,2]
[423653925,1780282246000,-150.0,0.00014444,2]
[423653905,1780282246000,-188.40616197,0.00014358,2]
[423653891,1780282246000,-150.0,0.00014326,2]
[423653912,1780282246000,-150.0,0.00014385,2]
[423653932,1780282246000,-188.40616197,0.00014487,2]
[423653884,1780282246000,-250.0,0.00014,2]
[423653888,1780282246000,-166.66,0.00014247,2]
[423653887,1780282246000,-73007.77152303,0.00014181,2]
[423653885,1780282246000,-166.66,0.0001411,2]
[423653886,1780282246000,-76822.64920054,0.00014169,2]
[423653889,1780282246000,-150.0,0.00014326,2]
[423653892,1780282246000,-150.0,0.00014326,2]
[423653906,1780282246000,-150.0,0.00014361,2]
[423653890,1780282246000,-150.0,0.00014326,2]
[423653896,1780282246000,-150.0,0.00014326,2]
[423653895,1780282246000,-150.0,0.00014326,2]
[423653894,1780282246000,-150.0,0.00014326,2]
[423653899,1780282246000,-188.40616197,0.00014326,2]
[423653910,1780282246000,-188.40616197,0.00014374,2]
[423653901,1780282246000,-150.0,0.00014326,2]
[423653904,1780282246000,-188.40616197,0.00014342,2]
[423653908,1780282246000,-150.0,0.00014373,2]
[423653897,1780282246000,-150.0,0.00014326,2]
[423653935,1780282246000,-150.0,0.00014503,2]
[423653893,1780282246000,-150.0,0.00014326,2]
[423653936,1780282246000,-150.0,0.00014513,2]
[423653959,1780282246000,-150.0,0.00014644,2]
[423653962,1780282246000,-150.0,0.00014654,2]
[423653967,1780282246000,-1564.22629848,0.00014675,2]
[423653964,1780282246000,-188.40616197,0.00014664,2]
[423653965,1780282246000,-150.0,0.00014672,2]
[423653966,1780282246000,-2749.1967512,0.00014673,2]
[423653968,1780282246000,-188.40616197,0.0001468,2]
[423653969,1780282246000,-150.0,0.0001468,2]
[423653960,1780282246000,-188.40616197,0.00014648,2]
[423653963,1780282246000,-2990.74660711,0.00014664,2]
[423653972,1780282246000,-150.0,0.00014701,2]
[423653975,1780282246000,-2749.1967512,0.00014722,2]
[423653976,1780282246000,-150.0,0.00014724,2]
[423653973,1780282246000,-150.0,0.00014707,2]
[423653974,1780282246000,-188.40616197,0.00014712,2]
[423653978,1780282246000,-2749.1967512,0.00014734,2]
[423653977,1780282246000,-188.40616197,0.00014728,2]
[423653937,1780282246000,-150.0,0.00014513,2]
[423653971,1780282246000,-150.0,0.00014701,2]
[423653958,1780282246000,-150.0,0.00014644,2]
[423653970,1780282246000,-188.40616197,0.00014696,2]
[423653961,1780282246000,-2749.1967512,0.00014653,2]
[423653939,1780282246000,-150.0,0.00014534,2]
[423653957,1780282246000,-150.0,0.00014637,2]
[423653941,1780282246000,-150.0,0.00014538,2]
[423653938,1780282246000,-188.40616197,0.00014519,2]
[423653940,1780282246000,-188.40616197,0.00014535,2]
[423653942,1780282246000,-188.40616197,0.00014551,2]
[423653947,1780282246000,-150.0,0.00014568,2]
[423653946,1780282246000,-188.40616197,0.00014567,2]
[423653945,1780282246000,-2749.1967512,0.00014565,2]
[423653943,1780282246000,-150.0,0.0001456,2]
[423653944,1780282246000,-150.0,0.00014562,2]
[423653950,1780282246000,-188.40616197,0.00014599,2]
[423653951,1780282246000,-150.0,0.00014603,2]
[423653949,1780282246000,-150.0,0.00014591,2]
[423653952,1780282246000,-150.0,0.00014607,2]
[423653953,1780282246000,-150.0,0.00014607,2]
[423653956,1780282246000,-188.40616197,0.00014632,2]
[423653948,1780282246000,-188.40616197,0.00014583,2]
[423653955,1780282246000,-150.0,0.00014621,2]
[423653954,1780282246000,-188.40616197,0.00014615,2]
[423654057,1780282247000,-150.0,0.00014888,2]
[423654074,1780282247000,-188.40616197,0.00014921,2]
[423654079,1780282247000,-1564.22629848,0.00014935,2]
[423654077,1780282247000,-150.0,0.00014935,2]
[423654061,1780282247000,-76822.64920054,0.000149,2]
[423654081,1780282247000,-1412.64063541,0.00014935,2]
[423654064,1780282247000,-73007.77152303,0.000149,2]
[423654059,1780282247000,-188.40616197,0.00014889,2]
[423654069,1780282247000,-150.0,0.00014914,2]
[423654066,1780282247000,-188.40616197,0.00014905,2]
[423654071,1780282247000,-150.0,0.00014916,2]
[423654097,1780282247000,-150.0,0.00014984,2]
[423654084,1780282247000,-188.40616197,0.00014937,2]
[423654093,1780282247000,-188.40616197,0.00014969,2]
[423654094,1780282247000,-150.0,0.00014975,2]
[423654092,1780282247000,-150.0,0.00014963,2]
[423654090,1780282247000,-188.40616197,0.00014953,2]
[423654091,1780282247000,-150.0,0.00014963,2]
[423654096,1780282247000,-150.0,0.00014981,2]
[423654095,1780282247000,-150.0,0.00014981,2]
[423654088,1780282247000,-150.0,0.00014949,2]
[423654049,1780282247000,-188.40616197,0.00014873,2]
[423654086,1780282247000,-728.53975415,0.00014946,2]
[423654052,1780282247000,-150.0,0.0001488,2]
[423653997,1780282247000,-188.40616197,0.00014792,2]
[423654054,1780282247000,-150.0,0.00014888,2]
[423653979,1780282247000,-150.0,0.00014739,2]
[423653980,1780282247000,-150.0,0.00014741,2]
[423653992,1780282247000,-150.0,0.00014776,2]
[423653983,1780282247000,-188.40616197,0.00014744,2]
[423654098,1780282247000,-188.40616197,0.00014985,2]
[423653995,1780282247000,-188.40616197,0.00014776,2]
[423653988,1780282247000,-150.0,0.00014751,2]
[423653990,1780282247000,-188.40616197,0.0001476,2]
[423653985,1780282247000,-150.0,0.00014747,2]
[423654000,1780282247000,-150.0,0.00014794,2]
[423654002,1780282247000,-150.0,0.00014794,2]
[423654004,1780282247000,-150.0,0.00014798,2]
[423654014,1780282247000,-1564.22629848,0.00014818,2]
[423654018,1780282247000,-188.40616197,0.00014824,2]
[423654008,1780282247000,-188.40616197,0.00014808,2]
[423654022,1780282247000,-188.40616197,0.00014841,2]
[423654011,1780282247000,-150.0,0.0001481,2]
[423654026,1780282247000,-150.0,0.00014841,2]
[423654030,1780282247000,-150.0,0.00014845,2]
[423654034,1780282247000,-150.0,0.00014857,2]
[423654038,1780282247000,-150.0,0.00014857,2]
[423654042,1780282247000,-188.40616197,0.00014857,2]
[423654047,1780282247000,-728.53975415,0.00014861,2]
[423654044,1780282247000,-150.0,0.00014857,2]
[423654100,1780282247000,-599058.66702645,0.00015,2]
[423654105,1780282247000,-1412.64063541,0.00015025,2]
[423654107,1780282247000,-188.40616197,0.00015033,2]
[423654152,1780282247000,-1335.490966,0.00015068,2]
[423654150,1780282247000,-1335.490966,0.00015068,2]
[423654156,1780282247000,-1335.49096,0.00015068,2]
[423654159,1780282247000,-150.0,0.00015069,2]
[423654161,1780282247000,-150.0,0.00015075,2]
[423654171,1780282247000,-188.40616197,0.00015098,2]
[423654174,1780282247000,-188.40616197,0.00015114,2]
[423654180,1780282247000,-150.0,0.00015122,2]
[423654178,1780282247000,-150.0,0.00015122,2]
[423654108,1780282247000,-150.0,0.00015033,2]
[423654165,1780282247000,-188.40616197,0.00015082,2]
[423654176,1780282247000,-150.0,0.00015122,2]
[423654167,1780282247000,-150.0,0.00015087,2]
[423654182,1780282247000,-150.0,0.00015122,2]
[423654169,1780282247000,-150.0,0.00015092,2]
[423654184,1780282247000,-150.0,0.00015122,2]
[423654188,1780282247000,-188.40616197,0.00015146,2]
[423654186,1780282247000,-188.40616197,0.0001513,2]
[423654191,1780282247000,-150.0,0.00015151,2]
[423654193,1780282247000,-150.0,0.00015157,2]
[423654195,1780282247000,-188.40616197,0.00015162,2]
[423654197,1780282247000,-150.0,0.00015169,2]
[423654199,1780282247000,-150.0,0.00015169,2]
[423654144,1780282247000,-1335.490966,0.00015068,2]
[423654146,1780282247000,-1335.490966,0.00015068,2]
[423654163,1780282247000,-150.0,0.00015075,2]
[423654142,1780282247000,-1335.490966,0.00015068,2]
[423654154,1780282247000,-1335.490966,0.00015068,2]
[423654101,1780282247000,-280.41811625,0.00015,2]
[423654102,1780282247000,-188.40616197,0.00015001,2]
[423654099,1780282247000,-3259.22837469,0.0001499,2]
[423654109,1780282247000,-1412.64063541,0.00015041,2]
[423654103,1780282247000,-188.40616197,0.00015017,2]
[423654104,1780282247000,-150.0,0.00015018,2]
[423654111,1780282247000,-188.40616197,0.0001505,2]
[423654121,1780282247000,-1335.490966,0.00015068,2]
[423654119,1780282247000,-1335.490966,0.00015068,2]
[423654113,1780282247000,-150.0,0.00015053,2]
[423654106,1780282247000,-150.0,0.00015028,2]
[423654117,1780282247000,-1335.490966,0.00015068,2]
[423654126,1780282247000,-1335.490966,0.00015068,2]
[423654139,1780282247000,-1335.490966,0.00015068,2]
[423654135,1780282247000,-1335.490966,0.00015068,2]
[423654137,1780282247000,-1335.490966,0.00015068,2]
[423654134,1780282247000,-1335.490966,0.00015068,2]
[423654148,1780282247000,-1335.490966,0.00015068,2]
[423654115,1780282247000,-188.40616197,0.00015066,2]
[423654124,1780282247000,-1335.490966,0.00015068,2]
[423654128,1780282247000,-1335.490966,0.00015068,2]
[423654130,1780282247000,-1335.490966,0.00015068,2]
[423654132,1780282247000,-1335.490966,0.00015068,2]
[423654227,1780282248000,-150.0,0.00015262,2]
[423654238,1780282248000,-150.0,0.00015295,2]
[423654248,1780282248000,-150.0,0.00015309,2]
[423654235,1780282248000,-150.0,0.00015281,2]
[423654246,1780282248000,-188.40616197,0.00015307,2]
[423654244,1780282248000,-644.0,0.000153,2]
[423654242,1780282248000,-315.0,0.000153,2]
[423654233,1780282248000,-188.40616197,0.00015275,2]
[423654231,1780282248000,-150.0,0.00015269,2]
[423654229,1780282248000,-150.0,0.00015262,2]
[423654225,1780282248000,-150.0,0.0001526,2]
[423654237,1780282248000,-188.40616197,0.00015291,2]
[423654223,1780282248000,-188.40616197,0.00015259,2]
[423654219,1780282248000,-188.40616197,0.00015226,2]
[423654217,1780282248000,-150.0,0.00015226,2]
[423654213,1780282248000,-150.0,0.0001521,2]
[423654215,1780282248000,-150.0,0.00015216,2]
[423654210,1780282248000,-188.40616197,0.0001521,2]
[423654208,1780282248000,-188.40616197,0.00015194,2]
[423654202,1780282248000,-150.0,0.00015175,2]
[423654206,1780282248000,-150.0,0.00015191,2]
[423654204,1780282248000,-188.40616197,0.00015178,2]
[423654221,1780282248000,-188.40616197,0.00015243,2]
[423654252,1780282248000,-150.0,0.00015328,2]
[423654264,1780282248000,-150.0,0.00015364,2]
[423654236,1780282248000,-150.0,0.00015281,2]
[423654250,1780282248000,-188.40616197,0.00015323,2]
[423654285,1780282248000,-188.40616197,0.00015468,2]
[423654279,1780282248000,-150.0,0.00015433,2]
[423654278,1780282248000,-188.40616197,0.00015419,2]
[423654283,1780282248000,-150.0,0.0001545,2]
[423654276,1780282248000,-150.0,0.00015403,2]
[423654281,1780282248000,-150.0,0.00015446,2]
[423654282,1780282248000,-150.0,0.0001545,2]
[423654275,1780282248000,-150.0,0.00015399,2]
[423654272,1780282248000,-188.40616197,0.00015387,2]
[423654273,1780282248000,-150.0,0.00015387,2]
[423654284,1780282248000,-188.40616197,0.00015452,2]
[423654277,1780282248000,-188.40616197,0.00015403,2]
[423654274,1780282248000,-2000.0,0.00015389,7]
[423654240,1780282248000,-1000.0,0.000153,2]
[423654256,1780282248000,-188.40616197,0.00015339,2]
[423654254,1780282248000,-150.0,0.0001533,2]
[423654258,1780282248000,-188.40616197,0.00015355,2]
[423654260,1780282248000,-150.0,0.00015356,2]
[423654262,1780282248000,-150.0,0.00015356,2]
[423654268,1780282248000,-150.0,0.00015387,2]
[423654270,1780282248000,-150.0,0.00015387,2]
[423654266,1780282248000,-188.40616197,0.00015371,2]
[423654395,1780282249000,-650.148347,0.00016438,2]
[423654400,1780282249000,-650.148347,0.00016438,2]
[423654396,1780282249000,-650.148347,0.00016438,2]
[423654394,1780282249000,-650.148347,0.00016438,2]
[423654410,1780282249000,-201.97385028,0.000169,30]
[423654393,1780282249000,-650.148347,0.00016438,2]
[423654398,1780282249000,-650.148347,0.00016438,2]
[423654392,1780282249000,-650.148347,0.00016438,2]
[423654389,1780282249000,-650.148347,0.00016438,2]
[423654390,1780282249000,-650.148347,0.00016438,2]
[423654397,1780282249000,-650.148347,0.00016438,2]
[423654412,1780282249000,-150.0,0.00017163,3]
[423654391,1780282249000,-650.148347,0.00016438,2]
[423654401,1780282249000,-650.148347,0.00016438,2]
[423654416,1780282249000,-10262.09196246,0.00017536,2]
[423654402,1780282249000,-650.148347,0.00016438,2]
[423654403,1780282249000,-650.148347,0.00016438,2]
[423654406,1780282249000,-650.148347,0.00016438,2]
[423654405,1780282249000,-650.148347,0.00016438,2]
[423654407,1780282249000,-650.148344,0.00016438,2]
[423654409,1780282249000,-264.84,0.00016767,2]
[423654408,1780282249000,-168.08,0.00016712,2]
[423654404,1780282249000,-650.148347,0.00016438,2]
[423654413,1780282249000,-441.14555396,0.00017519,2]
[423654417,1780282249000,-11954.46,0.00017572,2]
[423654386,1780282249000,-152.0,0.00016438,2]
[423654415,1780282249000,-4918.90261399,0.00017536,2]
[423654420,1780282249000,-2266.0,0.000176,2]
[423654422,1780282249000,-3006.37,0.00017808,2]
[423654399,1780282249000,-650.148347,0.00016438,2]
[423654388,1780282249000,-650.148347,0.00016438,2]
[423654384,1780282249000,-152.0,0.00016438,2]
[423654381,1780282249000,-1148.5,0.00016438,2]
[423654358,1780282249000,-153.92330007,0.00015918,2]
[423654359,1780282249000,-151.12134737,0.00015918,2]
[423654355,1780282249000,-156.323396,0.00015918,2]
[423654357,1780282249000,-188.40616197,0.00015918,2]
[423654356,1780282249000,-188.49853148,0.00015918,2]
[423654360,1780282249000,-150.56250073,0.00015918,2]
[423654363,1780282249000,-185.25931037,0.00015918,2]
[423654362,1780282249000,-154.9223854,0.00015918,2]